bitfinex-derivatives/quotes_BTCF0:USTF0_20250915
["timestamp","ask_amount","ask_price","bid_price","bid_amount"]
[1757965022708,0.03636,115380.0,115370.0,1.15662]
[1757965023006,0.03636,115380.0,115370.0,1.15652]
[1757965023506,0.03636,115380.0,115370.0,1.15452]
[1757965024705,0.03636,115380.0,115370.0,1.15152]
[1757965025103,0.03636,115380.0,115370.0,1.15352]
[1757965026910,0.03636,115380.0,115370.0,1.15652]
[1757965027505,0.03636,115380.0,115370.0,1.5027082]
[1757965027905,0.0002,115390.0,115380.0,0.00548]
[1757965028212,0.0002,115400.0,115390.0,0.02732]
[1757965028403,0.0002,115410.0,115390.0,1.9291152]
[1757965028606,0.0002,115410.0,115400.0,0.7303082]
[1757965028807,0.0002,115420.0,115400.0,1.0403082]
[1757965029106,0.0002,115420.0,115410.0,1.1676282]
[1757965029314,0.37463,115430.0,115410.0,1.8279082]
[1757965029514,0.39736,115430.0,115420.0,0.3695082]
[1757965029706,0.39716,115430.0,115420.0,0.35356117]
[1757965030529,0.39716,115430.0,115420.0,0.52356117]
[1757965030918,0.39716,115430.0,115420.0,0.66356117]
[1757965031120,0.39916,115430.0,115420.0,1.41168117]
[1757965031419,0.39916,115430.0,115420.0,0.57356117]
[1757965031826,0.39916,115430.0,115420.0,1.0414]
[1757965032025,0.40216,115430.0,115420.0,1.0414]
[1757965032726,0.40216,115430.0,115420.0,1.04136]
[1757965032913,0.40016,115430.0,115420.0,1.04136]
[1757965033119,0.04336,115430.0,115420.0,1.04136]
[1757965033614,0.04336,115430.0,115420.0,0.87136]
[1757965034225,0.007,115430.0,115420.0,1.38285027]
[1757965034525,0.007,115430.0,115420.0,1.74365027]
[1757965034722,0.007,115430.0,115420.0,1.73817027]
[1757965038019,0.007,115430.0,115420.0,1.98817027]
[1757965041626,0.006,115430.0,115420.0,1.73817027]
[1757965042930,0.004,115430.0,115420.0,1.19013027]
[1757965043130,0.005,115430.0,115420.0,1.98789027]
[1757965043323,0.005,115430.0,115420.0,1.19013027]
[1757965043724,0.001,115430.0,115420.0,1.98785027]
[1757965043925,0.002,115430.0,115420.0,1.98785027]
[1757965045724,0.002,115430.0,115420.0,2.02871181]
[1757965047230,0.002,115430.0,115420.0,1.23099181]
[1757965047425,0.002,115430.0,115420.0,2.02859181]
[1757965047630,0.002,115430.0,115420.0,2.29499181]
[1757965049833,0.002,115430.0,115420.0,1.49739181]
[1757965050029,0.01483,115430.0,115420.0,1.65808]
[1757965050227,0.03662,115430.0,115420.0,0.49972]
[1757965050426,0.28662,115430.0,115420.0,1.29724]
[1757965050630,0.28662,115430.0,115420.0,1.03084]
[1757965050829,0.28662,115430.0,115420.0,0.23332]
[1757965051030,0.28662,115430.0,115420.0,1.41771181]
[1757965051633,0.28662,115430.0,115420.0,0.62019181]
[1757965051830,0.28662,115430.0,115420.0,1.0308]
[1757965052033,0.28662,115430.0,115420.0,1.41767181]
[1757965052230,0.002,115430.0,115420.0,1.41767181]
[1757965052429,0.002,115430.0,115420.0,1.77847181]
[1757965053937,0.002,115430.0,115420.0,1.76310689]
[1757965054137,0.002,115430.0,115420.0,2.13461378]
[1757965054338,0.0002,115440.0,115420.0,2.38461378]
[1757965054526,0.0002,115440.0,115430.0,1.12553378]
[1757965054726,0.0002,115450.0,115440.0,0.0332]
[1757965054931,0.37463,115460.0,115440.0,1.62365378]
[1757965055134,0.37463,115460.0,115450.0,0.39322689]
[1757965055135,0.41793972,115460.0,115450.0,0.39322689]
[1757965055433,0.66773972,115460.0,115450.0,0.39322689]
[1757965055734,0.41773972,115460.0,115450.0,0.39322689]
[1757965056535,0.27151972,115460.0,115450.0,0.43322689]
[1757965056735,0.02151972,115460.0,115450.0,0.44322689]
[1757965057437,0.02551972,115460.0,115450.0,0.44322689]
[1757965057835,0.02851972,115460.0,115450.0,0.45850247]
[1757965058132,0.02451972,115460.0,115450.0,0.45850247]
[1757965058339,0.02651972,115460.0,115450.0,0.45850247]
[1757965058640,0.02351972,115460.0,115450.0,1.20590247]
[1757965058829,0.02451972,115460.0,115450.0,1.20590247]
[1757965060838,0.02451972,115460.0,115450.0,1.73670247]
[1757965062443,0.05913972,115460.0,115450.0,1.3498]
[1757965062635,0.05913972,115460.0,115450.0,0.19172]
[1757965062835,0.05913972,115460.0,115450.0,0.989]
[1757965063440,0.03734972,115460.0,115450.0,1.3498]
[1757965065439,0.03734972,115460.0,115450.0,0.55252]
[1757965065440,0.05913972,115460.0,115450.0,0.55252]
[1757965065743,0.69592219,115460.0,115450.0,0.98892]
[1757965065943,0.30913972,115460.0,115450.0,0.98892]
[1757965066144,0.02451972,115460.0,115450.0,1.37570247]
[1757965066346,0.02451972,115460.0,115450.0,0.98892]
[1757965066741,0.05913972,115460.0,115450.0,0.98892]
[1757965067343,0.02451972,115460.0,115450.0,1.34972]
[1757965067641,0.02451972,115460.0,115450.0,1.73650247]
[1757965070250,0.03734972,115460.0,115450.0,1.34972]
[1757965070448,0.03734972,115460.0,115450.0,1.73650247]
[1757965071752,0.05913972,115460.0,115450.0,0.55252]
[1757965072052,1.05672219,115460.0,115450.0,0.8188]
[1757965072647,0.66993972,115460.0,115450.0,0.8188]
[1757965072846,1.05672219,115460.0,115450.0,0.8188]
[1757965073449,0.80672219,115460.0,115450.0,0.8188]
[1757965074254,0.41993972,115460.0,115450.0,0.8188]
[1757965074442,0.80672219,115460.0,115450.0,0.8188]
[1757965075757,0.41993972,115460.0,115450.0,0.8188]
[1757965077652,0.01286,115450.0,115440.0,0.0001]
[1757965077853,0.0361,115440.0,115430.0,0.754447]
[1757965078053,0.42912672,115440.0,115430.0,1.741307]
[1757965080251,0.407607,115440.0,115430.0,1.741307]
[1757965080660,0.01306,115450.0,115430.0,1.801307]
[1757965080858,0.0373,115450.0,115440.0,1.125854]
[1757965081155,0.0373,115450.0,115440.0,1.137334]
[1757965081156,0.001,115450.0,115440.0,1.137334]
[1757965081357,0.001,115450.0,115440.0,1.457334]
[1757965083253,0.01303,115460.0,115440.0,1.457334]
[1757965083453,0.05782576,115460.0,115450.0,1.551267]
[1757965083654,0.05762576,115460.0,115450.0,1.591267]
[1757965084857,0.05962576,115460.0,115450.0,1.591267]
[1757965085667,0.02355576,115460.0,115450.0,1.841267]
[1757965085856,0.002,115460.0,115450.0,2.091267]
[1757965086163,0.002,115460.0,115450.0,2.55789725]
[1757965086360,0.0002,115470.0,115460.0,0.1141167]
[1757965086564,0.01,115490.0,115480.0,0.03352]
[1757965086861,0.01,115490.0,115480.0,1.792667]
[1757965087061,0.01,115490.0,115480.0,1.562667]
[1757965087254,0.01,115490.0,115480.0,2.614974]
[1757965087455,0.01,115490.0,115480.0,2.243467]
[1757965087651,0.01,115490.0,115480.0,2.31144092]
[1757965088065,0.012,115490.0,115480.0,2.31144092]
[1757965088368,0.012,115490.0,115480.0,2.93294792]
[1757965089456,0.012,115490.0,115480.0,1.76460092]
[1757965089664,0.014,115490.0,115480.0,2.56132092]
[1757965089862,0.014,115490.0,115480.0,2.57630256]
[1757965090064,0.012,115490.0,115480.0,2.57630256]
[1757965090263,0.01,115490.0,115480.0,2.57730256]
[1757965090464,0.01,115490.0,115480.0,2.57930256]
[1757965094966,0.0001,115500.0,115480.0,2.57930256]
[1757965095164,0.0001,115500.0,115490.0,0.75841864]
[1757965095363,0.0001,115510.0,115490.0,1.04841864]
[1757965095559,0.0001,115510.0,115500.0,1.55489864]
[1757965095759,0.0218301,115520.0,115500.0,1.55489864]
[1757965095965,0.0664776,115520.0,115510.0,0.75841864]
[1757965096165,0.06637755,115520.0,115510.0,0.75841864]
[1757965096365,0.05750745,115520.0,115510.0,0.39761864]
[1757965096970,0.05850745,115520.0,115510.0,0.01113]
[1757965097170,0.05950745,115520.0,115510.0,0.01113]
[1757965097566,0.05850745,115520.0,115510.0,0.01113]
[1757965097767,0.06050745,115520.0,115510.0,0.01113]
[1757965097968,0.06912414,115520.0,115510.0,0.01113]
[1757965098268,0.04771669,115520.0,115510.0,0.01113]
[1757965101073,0.04771669,115520.0,115510.0,0.71737]
[1757965101268,0.04771669,115520.0,115510.0,0.01113]
[1757965101474,0.04771669,115520.0,115510.0,0.80745]
[1757965102173,0.04771669,115520.0,115510.0,0.01113]
[1757965102576,0.04771669,115520.0,115510.0,0.80741]
[1757965104774,0.0391,115520.0,115510.0,0.80741]
[1757965106280,0.0391,115520.0,115510.0,1.01741]
[1757965106575,0.0391,115520.0,115510.0,0.80741]
[1757965108176,0.06050206,115520.0,115510.0,0.80741]
[1757965108881,0.06050206,115520.0,115510.0,0.98741]
[1757965110072,0.06050206,115520.0,115510.0,0.01113]
[1757965110275,0.03514,115500.0,115490.0,0.37203]
[1757965110473,0.03514,115500.0,115490.0,1.00721]
[1757965111474,0.03514,115500.0,115490.0,0.21113]
[1757965111670,0.05657937,115500.0,115490.0,0.80721]
[1757965112276,0.05657937,115500.0,115490.0,1.12721]
[1757965112679,0.05657937,115500.0,115490.0,1.48801]
[1757965113273,0.05657937,115500.0,115490.0,1.48901]
[1757965114073,0.03491937,115500.0,115490.0,1.48901]
[1757965114280,0.02143937,115500.0,115490.0,2.08449133]
[1757965114683,0.01368,115510.0,115490.0,2.08449133]
[1757965114978,0.0002,115510.0,115500.0,0.72436133]
[1757965115182,0.0002,115520.0,115500.0,1.04436133]
[1757965115385,0.02167361,115520.0,115510.0,1.50232133]
[1757965115584,0.02147361,115520.0,115510.0,1.73232133]
[1757965115785,0.05621433,115530.0,115520.0,0.01113]
[1757965115974,0.03435433,115530.0,115520.0,0.71741133]
[1757965116180,0.02149433,115530.0,115520.0,0.84741133]
[1757965117290,0.02249433,115530.0,115520.0,0.84741133]
[1757965118686,0.02349433,115530.0,115520.0,0.84741133]
[1757965120187,0.03697433,115530.0,115520.0,0.84741133]
[1757965120388,0.03697433,115530.0,115520.0,0.75741133]
[1757965120588,0.03697433,115530.0,115520.0,0.71741133]
[1757965121586,0.05863433,115530.0,115520.0,0.37193]
[1757965121792,0.05863433,115530.0,115520.0,1.16785]
[1757965122494,0.03714,115530.0,115520.0,1.16785]
[1757965122790,0.03695616,115530.0,115520.0,1.16785]
[1757965122987,0.02347616,115530.0,115520.0,1.51333133]
[1757965124689,0.02347616,115530.0,115520.0,1.16773]
[1757965124896,0.05861616,115530.0,115520.0,0.37193]
[1757965125291,0.05861616,115530.0,115520.0,1.16769]
[1757965128597,0.05861616,115530.0,115520.0,0.37193]
[1757965128897,0.05861616,115530.0,115520.0,1.16765]
[1757965129094,0.05861616,115530.0,115520.0,0.37193]
[1757965129400,0.05861616,115530.0,115510.0,0.80685]
[1757965129401,0.03514,115520.0,115510.0,0.80685]
[1757965129593,0.41741616,115520.0,115510.0,0.80685]
[1757965130091,0.76289749,115520.0,115510.0,0.01113]
[1757965130292,0.76289749,115520.0,115500.0,0.3608]
[1757965130293,0.03514,115510.0,115500.0,0.37193]
[1757965130493,0.05661616,115510.0,115500.0,1.16761]
[1757965130795,0.06518185,115510.0,115500.0,1.16761]
[1757965131298,0.05661616,115510.0,115500.0,0.37193]
[1757965131596,0.05661616,115510.0,115500.0,1.16861]
[1757965131794,0.05661616,115510.0,115500.0,1.16961]
[1757965132498,0.05661616,115510.0,115500.0,0.37393]
[1757965132698,0.05661616,115510.0,115500.0,1.16961]
[1757965135712,0.05661616,115510.0,115500.0,0.37393]
[1757965136005,0.05661616,115510.0,115500.0,1.16957]
[1757965137108,0.03514,115510.0,115500.0,1.16957]
[1757965137406,0.03514,115510.0,115500.0,0.37393]
[1757965137605,0.03514,115510.0,115500.0,1.16957]
[1757965138003,0.03514,115510.0,115500.0,1.41957]
[1757965143413,0.03514,115510.0,115500.0,1.16957]
[1757965146209,0.03514,115510.0,115500.0,0.80865]
[1757965146409,0.03514,115510.0,115500.0,0.94865]
[1757965146811,0.0002,115520.0,115500.0,2.11188133]
[1757965147114,0.0002,115520.0,115510.0,0.71741133]
[1757965147413,0.01368,115530.0,115510.0,1.00741133]
[1757965147606,0.03576,115530.0,115520.0,1.16745]
[1757965147812,0.03556,115530.0,115520.0,1.16745]
[1757965148212,0.04441405,115530.0,115520.0,1.16745]
[1757965149319,0.03556,115530.0,115520.0,1.16745]
[1757965150018,0.03656,115530.0,115520.0,1.16745]
[1757965150819,0.04618411,115530.0,115520.0,1.16745]
[1757965151223,0.002,115530.0,115520.0,2.20962614]
[1757965152018,0.0002,115540.0,115520.0,2.12307444]
[1757965152215,0.0002,115540.0,115530.0,0.71421133]
[1757965152421,0.0002,115550.0,115530.0,0.99421133]
[1757965152615,0.01302,115550.0,115540.0,1.50973133]
[1757965152811,0.01282,115550.0,115540.0,1.55973133]
[1757965153829,0.01282,115550.0,115540.0,1.85842659]
[1757965154021,0.01282,115550.0,115540.0,1.84973133]
[1757965154224,0.001,115550.0,115540.0,1.85468133]
[1757965154621,0.001,115550.0,115540.0,2.12481568]
[1757965155121,0.001,115550.0,115540.0,2.19493493]
[1757965155318,0.002,115550.0,115540.0,2.19493493]
[1757965156221,0.001,115550.0,115540.0,2.19493493]
[1757965156422,0.001,115550.0,115540.0,2.20564668]
[1757965157121,0.0002,115560.0,115540.0,2.20564668]
[1757965157317,0.0002,115560.0,115550.0,0.71421133]
[1757965157517,0.01302,115570.0,115550.0,1.02421133]
[1757965157718,0.01302,115570.0,115560.0,1.16413]
[1757965157719,0.0351,115570.0,115560.0,1.16413]
[1757965158017,0.0349,115570.0,115560.0,1.16413]
[1757965160226,0.0349,115570.0,115560.0,0.36873]
[1757965160426,0.0349,115570.0,115560.0,1.16409]
[1757965160926,0.0359,115570.0,115560.0,1.16409]
[1757965161125,0.01382,115570.0,115560.0,1.16409]
[1757965161527,0.0359,115570.0,115560.0,1.16405]
[1757965163024,0.01382,115570.0,115560.0,1.46405]
[1757965163217,0.01382,115570.0,115560.0,1.16405]
[1757965163822,0.0359,115570.0,115560.0,1.16401]
[1757965166029,0.01382,115570.0,115560.0,1.16401]
[1757965166925,0.001,115570.0,115560.0,1.16401]
[1757965167733,0.001,115570.0,115560.0,1.74008901]
[1757965169223,0.001,115570.0,115560.0,1.77008901]
[1757965169429,0.01464,115570.0,115560.0,1.77008901]
[1757965170332,0.001,115570.0,115560.0,1.77008901]
[1757965171134,0.001,115570.0,115560.0,1.55008901]
[1757965171436,0.01464,115570.0,115560.0,1.55008901]
[1757965172134,0.01464,115570.0,115560.0,1.86008901]
[1757965172530,0.001,115570.0,115560.0,1.86008901]
[1757965172931,0.01464,115570.0,115560.0,1.55008901]
[1757965173534,0.001,115570.0,115560.0,1.89008901]
[1757965173831,0.001,115570.0,115560.0,2.24521334]
[1757965175434,0.001,115570.0,115560.0,2.24621334]
[1757965175631,0.02182,115570.0,115560.0,0.70973]
[1757965175838,0.38362167,115580.0,115560.0,2.24705334]
[1757965176037,0.40544167,115580.0,115570.0,0.73933167]
[1757965176237,0.42671409,115580.0,115570.0,0.73933167]
[1757965176438,0.05611242,115580.0,115570.0,0.73933167]
[1757965178641,0.05611242,115580.0,115570.0,1.53437167]
[1757965178841,0.42671409,115580.0,115570.0,1.53437167]
[1757965179845,0.42671409,115580.0,115570.0,1.53537167]
[1757965182948,0.05611242,115580.0,115570.0,1.53537167]
[1757965183148,0.42671409,115580.0,115570.0,1.53537167]
[1757965183738,0.05611242,115580.0,115570.0,1.53537167]
[1757965184050,0.42671409,115580.0,115570.0,1.53537167]
[1757965184649,0.42671409,115580.0,115570.0,1.16477]
[1757965184949,0.05611242,115580.0,115570.0,1.53537167]
[1757965186846,0.05611242,115580.0,115570.0,1.16477]
[1757965187150,0.67671409,115580.0,115570.0,0.80385]
[1757965187452,0.67671409,115580.0,115570.0,1.17445167]
[1757965188452,0.30611242,115580.0,115570.0,1.17445167]
[1757965188641,0.67671409,115580.0,115570.0,1.17445167]
[1757965190046,1.40811576,115580.0,115570.0,0.001]
[1757965190256,1.0842051,115580.0,115570.0,0.001]
[1757965193347,0.78751409,115580.0,115570.0,0.001]
[1757965193552,0.78751409,115580.0,115570.0,0.00893]
[1757965194348,0.78751409,115580.0,115570.0,0.001]
[1757965194856,0.0369,115560.0,115550.0,0.0001]
[1757965195052,0.0369,115540.0,115530.0,0.80287]
[1757965195256,0.78977409,115540.0,115530.0,1.11484]
[1757965195751,0.78977409,115540.0,115530.0,0.79484]
[1757965195952,0.78977409,115540.0,115530.0,0.80277]
[1757965196250,0.42897409,115540.0,115530.0,0.80277]
[1757965196454,0.42897409,115540.0,115530.0,1.16357]
[1757965196657,0.42897409,115540.0,115530.0,0.80277]
[1757965197053,0.42897409,115540.0,115530.0,0.00793]
[1757965197650,0.42897409,115540.0,115530.0,0.00993]
[1757965197955,0.42897409,115540.0,115530.0,0.01393]
[1757965199155,0.42897409,115540.0,115530.0,0.03393]
[1757965199546,0.42897409,115540.0,115530.0,0.01393]
[1757965199752,0.49916257,115540.0,115530.0,0.01393]
[1757965200654,0.49916257,115540.0,115530.0,0.38453167]
[1757965201756,0.49916257,115540.0,115530.0,0.01393]
[1757965201958,0.49916257,115540.0,115530.0,0.38453167]
[1757965204158,0.47769015,115540.0,115530.0,0.38453167]
[1757965204359,0.47769015,115540.0,115530.0,0.01393]
[1757965204549,0.47769015,115540.0,115530.0,0.38453167]
[1757965205150,0.47769015,115540.0,115530.0,0.01393]
[1757965205355,0.47769015,115540.0,115530.0,0.38453167]
[1757965205757,0.47769015,115540.0,115530.0,0.006]
[1757965205758,0.83849015,115540.0,115530.0,0.006]
[1757965205960,0.0369,115540.0,115530.0,0.65453167]
[1757965206161,0.01384,115540.0,115530.0,1.40593334]
[1757965206464,0.01384,115540.0,115530.0,1.70593334]
[1757965206762,0.01404,115550.0,115530.0,1.70593334]
[1757965206958,0.0359,115550.0,115540.0,1.17341167]
[1757965207159,0.0357,115550.0,115540.0,1.50341167]
[1757965208064,0.40630167,115550.0,115540.0,0.80281]
[1757965208259,0.76710167,115550.0,115540.0,1.17341167]
[1757965208455,0.76710167,115550.0,115530.0,0.3678]
[1757965208456,0.03503,115540.0,115530.0,0.007]
[1757965208755,0.40563167,115540.0,115530.0,0.38153167]
[1757965208961,0.03503,115540.0,115530.0,0.38153167]
[1757965209459,0.40563167,115540.0,115530.0,0.38153167]
[1757965209765,0.40563167,115540.0,115530.0,0.37853167]
[1757965210569,0.03503,115540.0,115530.0,0.38153167]
[1757965210866,0.03503,115540.0,115530.0,1.36293334]
[1757965211166,0.03503,115540.0,115530.0,1.40693334]
[1757965211355,0.03503,115540.0,115530.0,2.20173334]
[1757965211756,0.01317,115540.0,115530.0,2.47173334]
[1757965212363,0.38464167,115550.0,115530.0,2.47668334]
[1757965212364,0.0002,115550.0,115530.0,2.47668334]
[1757965212570,0.0002,115550.0,115540.0,0.73933167]
[1757965212871,0.01404,115560.0,115540.0,1.48647064]
[1757965213065,0.01404,115560.0,115550.0,1.10993334]
[1757965213262,0.01384,115560.0,115550.0,1.82413167]
[1757965213567,0.01384,115560.0,115550.0,1.83293336]
[1757965213870,0.01404,115570.0,115550.0,2.08293336]
[1757965214067,0.0359,115570.0,115560.0,1.10993334]
[1757965214270,0.01384,115570.0,115560.0,1.38993334]
[1757965214871,0.01384,115570.0,115560.0,2.18469334]
[1757965215668,0.01384,115570.0,115560.0,2.18465334]
[1757965216070,0.01384,115570.0,115560.0,2.18665334]
[1757965216971,0.01337,115580.0,115560.0,1.39193334]
[1757965217166,0.01337,115580.0,115570.0,0.73933167]
[1757965217467,0.01317,115580.0,115570.0,0.87933167]
[1757965217663,0.46071778,115590.0,115570.0,1.53401167]
[1757965217664,0.01337,115590.0,115570.0,1.53401167]
[1757965217964,0.03523,115590.0,115580.0,1.53401167]
[1757965218166,0.03503,115590.0,115580.0,1.07933167]
[1757965218570,0.03503,115590.0,115580.0,1.87397167]
[1757965219371,0.40563167,115590.0,115580.0,0.37853167]
[1757965219568,0.40563167,115590.0,115580.0,0.80257]
[1757965219774,0.6710617,115590.0,115580.0,0.80257]
[1757965220078,0.28503,115590.0,115580.0,0.80353]
[1757965220374,0.28503,115590.0,115580.0,0.00893]
[1757965220573,0.28503,115590.0,115580.0,0.80353]
[1757965221466,0.03503,115590.0,115580.0,0.80353]
[1757965221674,0.03503,115590.0,115580.0,0.80349]
[1757965222472,0.03503,115590.0,115580.0,0.00893]
[1757965222671,0.03503,115590.0,115580.0,0.80345]
[1757965223274,0.08318302,115600.0,115580.0,1.8302817]
[1757965223573,0.01317,115590.0,115580.0,1.44425]
[1757965224069,0.01317,115590.0,115580.0,1.8302817]
[1757965224372,0.01337,115600.0,115580.0,2.0802417]
[1757965224572,0.01337,115600.0,115590.0,0.7547617]
[1757965224775,0.01317,115600.0,115590.0,0.67873]
[1757965225474,0.01317,115600.0,115590.0,0.36873]
[1757965225772,0.01417,115600.0,115590.0,1.35317]
[1757965225972,0.03603,115600.0,115590.0,1.16317]
[1757965227572,0.01417,115600.0,115590.0,1.16317]
[1757965228267,0.03561809,115600.0,115590.0,1.49317]
[1757965228579,0.001,115600.0,115590.0,1.83813745]
[1757965228981,0.001,115600.0,115590.0,2.08813745]
[1757965229172,0.001,115600.0,115590.0,2.08801745]
[1757965230379,0.001,115600.0,115590.0,2.09669237]
[1757965231183,0.001,115600.0,115590.0,1.29369745]
[1757965231382,0.01445,115600.0,115590.0,1.29369745]
[1757965231681,0.01445,115600.0,115590.0,2.08793745]
[1757965232380,0.01445,115600.0,115590.0,1.74297]
[1757965232878,0.01445,115600.0,115590.0,0.94873]
[1757965233085,0.01445,115600.0,115590.0,1.29369745]
[1757965233582,0.01445,115600.0,115590.0,2.08785745]
[1757965233985,0.01445,115600.0,115590.0,1.29369745]
[1757965234182,0.01445,115600.0,115590.0,2.08785745]
[1757965234881,0.001,115600.0,115590.0,2.08785745]
[1757965235886,0.01445,115600.0,115590.0,1.49285]
[1757965236080,0.01445,115600.0,115590.0,1.13205]
[1757965236280,0.03589875,115600.0,115590.0,1.49285]
[1757965236580,0.03589875,115600.0,115590.0,1.13205]
[1757965237283,0.03589875,115600.0,115590.0,1.49285]
[1757965238180,0.03589875,115600.0,115590.0,1.13205]
[1757965238384,0.01445,115600.0,115590.0,1.13205]
[1757965239579,0.01445,115600.0,115590.0,0.33793]
[1757965239890,0.05763936,115600.0,115590.0,0.33793]
[1757965240178,0.03621,115600.0,115590.0,1.13193]
[1757965240375,0.05765199,115600.0,115590.0,1.46125239]
[1757965240577,0.02244199,115600.0,115590.0,1.46125239]
[1757965240780,0.001,115600.0,115590.0,2.07205239]
[1757965241481,0.001,115600.0,115590.0,2.40137478]
[1757965241682,0.01345,115640.0,115610.0,0.00375]
[1757965241882,0.03521,115640.0,115630.0,0.33533239]
[1757965242082,0.05665812,115640.0,115630.0,0.33533239]
[1757965242286,0.05665812,115640.0,115630.0,0.79997]
[1757965242486,0.06551815,115640.0,115630.0,0.79997]
[1757965243182,0.05665812,115640.0,115630.0,0.00601]
[1757965243389,0.05665812,115640.0,115630.0,1.12929239]
[1757965243685,0.05765812,115640.0,115630.0,1.12929239]
[1757965243888,0.05765812,115640.0,115630.0,0.79997]
[1757965244683,0.05965812,115640.0,115630.0,0.79997]
[1757965244884,0.05966389,115640.0,115630.0,0.79997]
[1757965246783,0.05966389,115640.0,115620.0,0.3609]
[1757965246784,1.01521635,115640.0,115620.0,0.3609]
[1757965246990,0.03521,115620.0,115610.0,0.02638561]
[1757965247281,0.03521,115620.0,115610.0,0.61620561]
[1757965247282,0.41746389,115620.0,115610.0,0.61620561]
[1757965247483,0.41746389,115620.0,115600.0,1.1547]
[1757965247686,0.03521,115610.0,115600.0,1.47061]
[1757965247883,0.05666389,115610.0,115600.0,1.47061]
[1757965248490,0.05666389,115610.0,115600.0,1.47261]
[1757965248692,0.05666389,115610.0,115600.0,1.16261]
[1757965249691,0.05666389,115610.0,115600.0,1.48261]
[1757965249892,0.05666389,115610.0,115600.0,1.48361]
[1757965250995,0.03490389,115610.0,115600.0,1.48361]
[1757965251195,0.40141635,115610.0,115600.0,0.68981]
[1757965251402,0.40141635,115610.0,115600.0,1.48353]
[1757965251597,0.05666389,115610.0,115600.0,1.48353]
[1757965255699,0.05666389,115610.0,115600.0,0.68981]
[1757965255991,0.05666389,115610.0,115600.0,1.48349]
[1757965256193,0.05611497,115610.0,115600.0,0.68981]
[1757965256399,0.76166743,115610.0,115600.0,1.11664]
[1757965256792,0.41691497,115610.0,115600.0,1.11664]
[1757965257197,0.48771112,115610.0,115600.0,1.11664]
[1757965258095,0.48771112,115610.0,115600.0,0.32989]
[1757965259398,0.12691112,115610.0,115600.0,0.32989]
[1757965260695,0.05611497,115610.0,115600.0,0.32989]
[1757965260903,0.03435497,115610.0,115600.0,1.03544246]
[1757965261104,0.02145389,115610.0,115600.0,1.28544246]
[1757965261307,0.03510389,115620.0,115600.0,1.28544246]
[1757965261508,0.03500389,115620.0,115610.0,1.15436]
[1757965261807,0.03490389,115620.0,115610.0,1.49436]
[1757965263506,0.03490389,115620.0,115610.0,1.49536]
[1757965264106,0.03490389,115620.0,115610.0,1.49636]
[1757965264610,0.05670389,115620.0,115610.0,0.36969]
[1757965264805,0.05670389,115620.0,115610.0,1.16321]
[1757965266404,0.02145389,115620.0,115610.0,2.13874736]
[1757965266609,0.02165389,115630.0,115610.0,2.13874736]
[1757965266809,0.02159991,115630.0,115620.0,0.71244246]
[1757965267009,0.02149991,115630.0,115620.0,1.01244246]
[1757965267807,0.02149991,115630.0,115620.0,0.66769]
[1757965269810,0.03417991,115630.0,115620.0,1.46109]
[1757965270909,0.02149991,115630.0,115620.0,1.46109]
[1757965273217,0.02149991,115630.0,115620.0,0.66769]
[1757965273412,0.03417991,115630.0,115620.0,1.46101]
[1757965274418,0.02149991,115630.0,115620.0,1.46101]
[1757965274620,0.02149991,115630.0,115620.0,1.80576246]
[1757965277518,0.02149991,115630.0,115620.0,1.46101]
[1757965278419,0.0002,115640.0,115620.0,1.46101]
[1757965278613,0.01278,115640.0,115630.0,0.36769]
[1757965278812,0.03415998,115640.0,115630.0,0.57769]
[1757965279012,0.05595998,115640.0,115630.0,0.57769]
[1757965279514,0.03415998,115640.0,115630.0,0.57769]
[1757965279715,0.05795998,115640.0,115630.0,0.57769]
[1757965280021,0.03615998,115640.0,115630.0,0.36769]
[1757965280518,0.03615998,115640.0,115630.0,0.69769]
[1757965280722,0.05795998,115640.0,115630.0,0.69769]
[1757965281322,0.05895998,115640.0,115630.0,0.69769]
[1757965281623,0.03715998,115640.0,115630.0,0.68769]
[1757965282521,0.05895998,115640.0,115630.0,1.48085]
[1757965282724,0.05895998,115640.0,115630.0,1.16085]
[1757965283015,0.05895998,115640.0,115630.0,0.36769]
[1757965283222,0.05895998,115640.0,115630.0,1.16085]
[1757965285423,1.01451244,115640.0,115620.0,0.0001]
[1757965285623,0.03448,115630.0,115620.0,0.80001]
[1757965285825,0.36366268,115630.0,115620.0,0.80001]
[1757965286419,0.36366268,115630.0,115620.0,1.16081]
[1757965286621,0.03448,115630.0,115620.0,1.16081]
[1757965287420,0.05597318,115630.0,115620.0,1.16081]
[1757965287923,0.05597318,115630.0,115620.0,1.53111094]
[1757965287924,0.42627412,115630.0,115620.0,1.53111094]
[1757965288521,0.40478094,115630.0,115620.0,1.85111094]
[1757965289226,0.42628942,115630.0,115620.0,1.85111094]
[1757965289424,0.42628942,115630.0,115620.0,1.53111094]
[1757965290126,0.42628942,115630.0,115620.0,1.81111094]
[1757965291424,0.05598848,115630.0,115620.0,1.81111094]
[1757965291729,0.42628942,115630.0,115620.0,1.53107094]
[1757965292226,0.05598848,115630.0,115620.0,1.53107094]
[1757965292428,0.42628942,115630.0,115620.0,1.53107094]
[1757965292628,0.40448942,115630.0,115620.0,1.53107094]
[1757965293423,0.03418848,115630.0,115620.0,1.53107094]
[1757965293623,0.40448942,115630.0,115620.0,1.53107094]
[1757965296930,0.03418848,115630.0,115620.0,1.53107094]
[1757965297430,0.42682942,115630.0,115620.0,0.73799094]
[1757965297625,0.05652848,115630.0,115620.0,1.53103094]
[1757965297825,0.42682942,115630.0,115620.0,1.53103094]
[1757965302636,0.42687621,115630.0,115620.0,1.53103094]
[1757965302836,0.05657527,115630.0,115620.0,1.53103094]
[1757965303130,0.42687621,115630.0,115620.0,0.00689]
[1757965303437,0.42687621,115630.0,115620.0,0.79985]
[1757965303634,0.42687621,115630.0,115620.0,1.17015094]
[1757965304036,0.42687621,115630.0,115620.0,1.38015094]
[1757965304736,0.42687621,115630.0,115620.0,1.74095094]
[1757965304933,0.01298,115620.0,115610.0,0.00699]
[1757965305138,1.13672188,115620.0,115610.0,0.79985]
[1757965305331,1.15827769,115620.0,115610.0,0.00689]
[1757965305531,1.15827769,115620.0,115610.0,0.79985]
[1757965305937,1.15827769,115620.0,115610.0,0.00689]